fUSD/lending_fUSD_20240521
["ID","MTS","AMOUNT","RATE_DAILY","PERIOD"]
[327651287,1716281447768,-167.47819089,0.00034701,2]
[327651288,1716281447779,-150.0,0.00034708,2]
[327651289,1716281447788,-457.61,0.00034722,2]
[327651290,1716281447798,-1500.0,0.00034729,2]
[327651291,1716281447809,-150.0,0.00034746,2]
[327651292,1716281447819,-150.0,0.00034753,2]
[327651293,1716281447828,-1273.7,0.00034759,6]
[327651294,1716281447839,-500.0,0.0003476,6]
[327651295,1716281447848,-244579.17367512,0.00034761,19]
[327651296,1716281447858,-500.0,0.00034761,6]
[327651297,1716281447868,-500.0,0.00034761,6]
[327651298,1716281447878,-500.0,0.00034761,6]
[327651299,1716281447888,-717.55,0.00034761,6]
[327651300,1716281447898,-36442.83,0.00034761,6]
[327651301,1716281447908,-500.0,0.00034762,6]
[327651302,1716281447918,-500.0,0.00034762,6]
[327651303,1716281447927,-500.0,0.00034762,6]
[327651304,1716281447937,-150.0,0.00034773,2]
[327651305,1716281448036,-2572.574511,0.00034774,2]
[327651306,1716281448046,-150.0,0.00034789,2]
[327651307,1716281448055,-158.9218,0.000348,2]
[327651308,1716281448064,-152286.1829,0.000348,2]
[327651309,1716281448073,-151.0,0.000348,7]
[327651310,1716281448082,-618.837056,0.000348,7]
[327651311,1716281448091,-151.0,0.000348,7]
[327651312,1716281448101,-618.837056,0.000348,7]
[327651313,1716281448110,-151.0,0.000348,7]
[327651314,1716281448119,-154.92776,0.000348,7]
[327651315,1716281448128,-152.196773,0.000348,7]
[327651316,1716281448137,-151.836261,0.000348,7]
[327651317,1716281448146,-151.0,0.000348,7]
[327651318,1716281448155,-151.0,0.000348,7]
[327651319,1716281448164,-151.0,0.000348,7]
[327651320,1716281448172,-150.0,0.00034823,2]
[327651321,1716281448181,-150.0,0.00034825,2]
[327651322,1716281448190,-150.0,0.0003484,2]
[327651323,1716281448199,-736.92324,0.0003484,2]
[327651324,1716281448208,-150.0,0.00034846,2]
[327651325,1716281448216,-150.0,0.00034848,2]
[327651326,1716281448225,-300.0,0.00034852,2]
[327651327,1716281448235,-167.0,0.00034862,5]
[327651328,1716281448244,-627.32,0.00034869,6]
[327651329,1716281448253,-1273.7,0.00034869,6]
[327651330,1716281448262,-500.0,0.0003487,6]
[327651331,1716281448271,-500.0,0.0003487,6]
[327651332,1716281448280,-500.0,0.0003487,6]
[327651333,1716281448289,-717.55,0.0003487,6]
[327651334,1716281448298,-36442.83,0.0003487,6]
[327651335,1716281448307,-219.28,0.00034871,6]
[327651336,1716281448316,-500.0,0.00034871,6]
[327651337,1716281448325,-500.0,0.00034871,6]
[327651338,1716281448334,-166.063965,0.0003488,8]
[327651339,1716281448344,-150.0,0.00034882,2]
[327651340,1716281448352,-281.81474394,0.00034898,4]
[327651341,1716281448362,-686.19599141,0.00034898,4]
[327651342,1716281448371,-204.60375302,0.00034898,4]
[327651343,1716281448380,-155.0,0.00034898,4]
[327651344,1716281448389,-304.80411429,0.00034898,4]
[327651345,1716281448398,-475.21951947,0.00034899,6]
[327651346,1716281448407,-159.72998858,0.000349,2]
[327651347,1716281448416,-159.72998849,0.000349,2]
[327651348,1716281448425,-159.72998849,0.000349,2]
[327651349,1716281448435,-159.72998849,0.000349,2]
[327651350,1716281448443,-159.72998849,0.000349,2]
[327651351,1716281448452,-275.0208,0.000349,8]
[327651352,1716281448461,-159.72998849,0.000349,2]
[327651353,1716281448470,-159.72998849,0.000349,2]
[327651354,1716281448478,-159.72998849,0.000349,2]
[327651355,1716281448487,-159.72998849,0.000349,2]
[327651356,1716281448496,-159.72998849,0.000349,2]
[327651357,1716281448506,-159.72998849,0.000349,2]
[327651358,1716281448515,-159.72998849,0.000349,2]
[327651359,1716281448524,-159.72998849,0.000349,2]
[327651360,1716281448533,-159.72998849,0.000349,2]
[327651361,1716281448542,-159.72998849,0.000349,2]
[327651362,1716281448551,-500.49,0.00034931,2]
[327651363,1716281448561,-150.0,0.00034935,2]
[327651364,1716281448570,-150.0,0.00034944,2]
[327651365,1716281448578,-159.72998849,0.0003495,2]
[327651366,1716281448588,-155.53,0.00034959,2]
[327651367,1716281448597,-150.0,0.00034962,2]
[327651368,1716281448606,-150.0,0.00034972,2]
[327651369,1716281448620,-2572.574511,0.00034976,2]
[327651370,1716281448630,-1273.7,0.00034978,6]
[327651371,1716281448639,-500.0,0.0003498,6]
[327651372,1716281448648,-500.0,0.0003498,6]
[327651373,1716281448659,-500.0,0.0003498,6]
[327651374,1716281448668,-717.55,0.0003498,6]
[327651375,1716281448677,-150.0,0.0003498,2]
[327651376,1716281448686,-36442.83,0.0003498,6]
[327651377,1716281448696,-151.0,0.0003498,7]
[327651378,1716281448706,-618.837056,0.0003498,7]
[327651379,1716281448715,-151.0,0.0003498,7]
[327651380,1716281448724,-618.837056,0.0003498,7]
[327651381,1716281448734,-151.0,0.0003498,7]
[327651382,1716281448743,-151.0,0.0003498,7]
[327651383,1716281448752,-151.0,0.0003498,7]
[327651384,1716281448761,-151.0,0.0003498,7]
[327651385,1716281448771,-500.0,0.00034981,6]
[327651386,1716281448780,-500.0,0.00034981,6]
[327651387,1716281448789,-150.0,0.00034993,2]
[327651388,1716281448800,-563.92,0.00034998,6]
[327651389,1716281448809,-500.0,0.00034998,6]
[327651390,1716281448819,-500.0,0.00034998,6]
[327651391,1716281448828,-500.0,0.00034998,6]
[327651392,1716281448837,-505.58177979,0.00034998,6]
[327651393,1716281448847,-500.0,0.00034998,6]
[327651394,1716281448856,-509.63734602,0.00034998,6]
[327651395,1716281448865,-500.0,0.00034998,6]
[327651396,1716281448874,-500.0,0.00034998,6]
[327651397,1716281448884,-500.0,0.00034998,6]
[327651398,1716281448893,-500.0,0.00034998,6]
[327651399,1716281448902,-500.0,0.00034998,6]
[327651400,1716281448911,-512.89787826,0.00034998,6]
[327651401,1716281448920,-500.0,0.00034998,6]
[327651402,1716281448930,-507.08908695,0.00034998,6]
[327651403,1716281448939,-500.0,0.00034998,6]
[327651404,1716281448948,-500.0,0.00034998,6]
[327651405,1716281448957,-500.0,0.00034998,6]
[327651406,1716281448966,-500.0,0.00034998,6]
[327651407,1716281448974,-500.0,0.00034998,6]
[327651408,1716281448983,-500.0,0.00034998,6]
[327651409,1716281448992,-571.21101253,0.00034998,6]
[327651410,1716281449001,-500.0,0.00034998,6]
[327651411,1716281449011,-500.0,0.00034998,6]
[327651412,1716281449019,-207.61821368,0.00034998,6]
[327651413,1716281449028,-516.66607573,0.00034998,6]
[327651414,1716281449038,-500.0,0.00034998,6]
[327651415,1716281449046,-608.82782115,0.00034998,6]
[327651416,1716281449055,-500.0,0.00034998,6]
[327651417,1716281449064,-500.0,0.00034998,6]
[327651418,1716281449073,-500.0,0.00034998,6]
[327651419,1716281449082,-257.51201041,0.00034998,6]
[327651420,1716281449091,-500.0,0.00034998,6]
[327651421,1716281449100,-500.0,0.00034998,6]
[327651422,1716281449108,-178.69309462,0.00034998,6]
[327651423,1716281449116,-509.9341759,0.00034998,6]
[327651424,1716281449124,-500.0,0.00034998,6]
[327651425,1716281449133,-500.0,0.00034998,6]
[327651426,1716281449142,-500.0,0.00034998,6]
[327651427,1716281449150,-500.0,0.00034998,6]
[327651428,1716281449159,-500.0,0.00034998,6]
[327651429,1716281449168,-500.0,0.00034998,6]
[327651430,1716281449178,-500.0,0.00034998,6]
[327651431,1716281449187,-500.0,0.00034998,6]
[327651432,1716281449196,-500.0,0.00034998,6]
[327651433,1716281449205,-500.0,0.00034998,6]
[327651434,1716281449215,-19513.44777255,0.00034999,2]
[327651435,1716281449224,-548.07,0.00035,2]
[327651436,1716281449233,-609.98,0.00035,2]
[327651437,1716281449243,-9992.74325279,0.00035,4]
[327651438,1716281449252,-2000.0,0.00035,2]
[327651439,1716281449261,-2000.0,0.00035,2]
[327651440,1716281449270,-2000.0,0.00035,2]
[327651441,1716281449279,-2000.0,0.00035,2]
[327651442,1716281449288,-2000.0,0.00035,2]
[327651443,1716281449297,-2000.0,0.00035,2]
[327651444,1716281449306,-2000.0,0.00035,2]
[327651445,1716281449315,-1000.0,0.00035,30]
[327651446,1716281449325,-1334.65,0.00035,6]
[327651447,1716281449334,-150.0,0.00035012,2]
[327651448,1716281449343,-150.0,0.00035033,2]
[327651449,1716281449352,-150.0,0.0003504,2]
[327651450,1716281449361,-167.47819089,0.0003504,2]
[327651451,1716281449370,-300.22961092,0.00035044,3]
[327651452,1716281449379,-858.9,0.00035047,2]
[327651453,1716281449388,-150.0,0.00035055,2]
[327651454,1716281449397,-159.72998849,0.00035057,2]
[327651455,1716281449407,-150.0,0.00035068,2]
[327651456,1716281449415,-150.0,0.00035071,2]
[327651457,1716281449424,-150.0,0.00035071,2]
[327651458,1716281449434,-3000.03,0.00035073,2]
[327651459,1716281449443,-150.0,0.0003508,2]
[327651460,1716281449452,-3000.0,0.00035086,2]
[327651461,1716281449461,-1273.7,0.00035088,6]
[327651462,1716281449470,-153.71,0.00035089,6]
[327651463,1716281449479,-150.0,0.00035089,2]
[327651464,1716281449489,-500.0,0.0003509,6]
[327651465,1716281449497,-500.0,0.0003509,6]
[327651466,1716281449507,-500.0,0.0003509,6]
[327651467,1716281449516,-285.02,0.0003509,6]
[327651468,1716281449526,-717.55,0.0003509,6]
[327651469,1716281449535,-36442.83,0.0003509,6]
[327651470,1716281449545,-150.0,0.00035097,2]
[327651471,1716281449554,-500.0,0.00035108,6]
[327651472,1716281449564,-269.45231782,0.00035108,6]
[327651473,1716281449573,-200.0,0.00035114,20]
[327651474,1716281449583,-1000.0,0.00035114,30]
[327651475,1716281449592,-500.0,0.00035114,10]
[327651476,1716281449602,-200.0,0.00035115,20]
[327651477,1716281449613,-1000.0,0.00035115,30]
[327651478,1716281449623,-1000.0,0.00035115,30]
[327651479,1716281449634,-500.0,0.00035115,10]
[327651480,1716281449644,-500.0,0.00035115,10]
[327651481,1716281449655,-150.0,0.00035115,2]
[327651482,1716281449664,-3000.0,0.00035116,2]
[327651483,1716281449674,-3000.0,0.00035118,2]
[327651484,1716281449684,-3000.0,0.00035134,2]
[327651485,1716281449694,-150.0,0.00035136,2]
[327651486,1716281449704,-150.0,0.00035142,2]
[327651487,1716281449714,-150.0,0.00035156,2]
[327651488,1716281449723,-150.0,0.00035158,2]
[327651489,1716281449733,-150.0,0.00035158,2]
[327651490,1716281449742,-159.72998849,0.00035164,2]
[327651491,1716281449751,-2572.574511,0.00035177,2]
[327651492,1716281449761,-150.0,0.00035194,2]
[327651493,1716281449770,-154.16360863,0.00035196,2]
[327651494,1716281449780,-1273.7,0.00035198,6]
[327651495,1716281449789,-500.0,0.00035199,6]
[327651496,1716281449799,-717.55,0.00035199,6]
[327651497,1716281449808,-36442.83,0.00035199,6]
[327651498,1716281449817,-500.0,0.000352,6]
[327651499,1716281449826,-643.51,0.000352,6]
[327651500,1716281449836,-1500.0,0.00035205,2]
[327651501,1716281449845,-150.0,0.00035212,2]
[327651502,1716281449855,-150.0,0.00035258,2]
[327651503,1716281449864,-150.0,0.00035259,2]
[327651504,1716281449873,-159.72998849,0.00035271,2]
[327651505,1716281449882,-1114.33100362,0.0003528,5]
[327651506,1716281449891,-1070.38073445,0.0003528,5]
[327651507,1716281449900,-150.0,0.00035288,2]
[327651508,1716281449909,-1909.67674969,0.00035292,7]
[327651509,1716281449918,-178.59455584,0.00035293,7]
[327651510,1716281449927,-150.0,0.00035295,2]
[327651511,1716281449936,-1909.67674965,0.000353,7]
[327651512,1716281449945,-1273.7,0.00035307,6]
[327651513,1716281449956,-1909.67674965,0.00035308,7]
[327651514,1716281449966,-474.74,0.00035309,6]
[327651515,1716281449976,-717.55,0.00035309,6]
[327651516,1716281449986,-36442.83,0.00035309,6]
[327651517,1716281449997,-235.983542,0.00035309,7]
[327651518,1716281450007,-243.228716,0.00035309,7]
[327651519,1716281450017,-500.0,0.0003531,6]
[327651520,1716281450030,-1909.67674965,0.00035316,7]
[327651521,1716281450040,-150.0,0.00035321,2]
[327651522,1716281450050,-150.0,0.00035323,2]
[327651523,1716281450059,-1909.67674965,0.00035324,7]
[327651524,1716281450068,-154.6535966,0.00035324,7]
[327651525,1716281450077,-1909.67674965,0.00035332,7]
[327651526,1716281450086,-5800.0,0.00035332,2]
[327651527,1716281450095,-1500.0,0.00035333,2]
[327651528,1716281450104,-1909.67674965,0.00035339,8]
[327651529,1716281450114,-150.0,0.0003534,2]
[327651530,1716281450124,-5800.0,0.00035341,2]
[327651531,1716281450133,-591.98,0.00035342,90]
[327651532,1716281450142,-591.98,0.00035342,92]
[327651533,1716281450152,-591.98,0.00035342,94]
[327651534,1716281450162,-591.98,0.00035342,96]
[327651535,1716281450171,-591.98,0.00035342,98]
[327651536,1716281450180,-591.98,0.00035342,100]
[327651537,1716281450190,-591.98,0.00035342,102]
[327651538,1716281450200,-591.98,0.00035342,104]
[327651539,1716281450209,-591.98,0.00035342,106]
[327651540,1716281450219,-591.98,0.00035342,108]
[327651541,1716281450230,-591.98,0.00035342,110]
[327651542,1716281450240,-591.98,0.00035342,112]
[327651543,1716281450250,-591.98,0.00035342,114]
[327651544,1716281450259,-591.98,0.00035342,116]
[327651545,1716281450269,-591.98,0.00035342,118]
[327651546,1716281450282,-591.98,0.00035342,120]
[327651547,1716281450291,-591.98,0.00035342,120]
[327651548,1716281450299,-591.98,0.00035342,120]
[327651549,1716281450308,-591.98,0.00035342,120]
[327651550,1716281450317,-591.98,0.00035342,120]
[327651551,1716281450326,-591.98,0.00035342,120]
[327651552,1716281450335,-591.98,0.00035342,120]
[327651553,1716281450344,-591.98,0.00035342,120]
[327651554,1716281450354,-592.16839099,0.00035342,120]
[327651555,1716281450363,-500.0,0.00035342,14]
[327651556,1716281450372,-549.85,0.00035342,90]
[327651557,1716281450382,-549.85,0.00035342,92]
[327651558,1716281450391,-549.85,0.00035342,94]
[327651559,1716281450400,-549.85,0.00035342,96]
[327651560,1716281450409,-549.85,0.00035342,98]
[327651561,1716281450419,-549.85,0.00035342,100]
[327651562,1716281450428,-549.85,0.00035342,102]
[327651563,1716281450437,-549.85,0.00035342,104]
[327651564,1716281450447,-549.85,0.00035342,106]
[327651565,1716281450456,-549.85,0.00035342,108]
[327651566,1716281450465,-549.85,0.00035342,110]
[327651567,1716281450473,-549.85,0.00035342,112]
[327651568,1716281450482,-549.85,0.00035342,114]
[327651569,1716281450491,-549.85,0.00035342,116]
[327651570,1716281450500,-549.85,0.00035342,118]
[327651571,1716281450509,-549.85,0.00035342,120]
[327651572,1716281450518,-549.85,0.00035342,120]
[327651573,1716281450529,-549.85,0.00035342,120]
[327651574,1716281450538,-549.85,0.00035342,120]
[327651575,1716281450548,-549.85,0.00035342,120]
[327651576,1716281450557,-549.85,0.00035342,120]
[327651577,1716281450571,-549.85,0.00035342,120]
[327651578,1716281450585,-549.85,0.00035342,120]
[327651579,1716281450595,-549.89960035,0.00035342,120]
[327651580,1716281450604,-500.0,0.00035342,6]
[327651581,1716281450617,-500.0,0.00035342,6]
[327651582,1716281450628,-500.0,0.00035342,6]
[327651583,1716281450638,-500.0,0.00035342,6]
[327651584,1716281450649,-500.0,0.00035342,6]
[327651585,1716281450661,-500.0,0.00035342,6]
[327651586,1716281450671,-300.0,0.00035346,2]
[327651587,1716281450681,-1909.67674965,0.00035347,8]
[327651588,1716281450690,-5800.0,0.00035349,2]
[327651589,1716281450701,-1909.67674965,0.00035355,8]
[327651590,1716281450711,-151.0,0.00035357,7]
[327651591,1716281450720,-151.0,0.00035357,7]
[327651592,1716281450729,-151.0,0.00035357,7]
[327651593,1716281450739,-151.0,0.00035357,7]
[327651594,1716281450749,-5800.0,0.00035357,2]
[327651595,1716281450759,-150.0,0.00035363,2]
[327651596,1716281450768,-150.0,0.00035363,2]
[327651597,1716281450780,-1909.67674965,0.00035363,8]
[327651598,1716281450789,-150.0,0.00035365,2]
[327651599,1716281450799,-5800.0,0.00035366,2]
[327651600,1716281450808,-1500.0,0.00035366,2]
[327651601,1716281450818,-1909.67674965,0.00035371,8]
[327651602,1716281450827,-151.0,0.00035374,7]
[327651603,1716281450837,-151.0,0.00035374,7]
[327651604,1716281450847,-151.0,0.00035374,7]
[327651605,1716281450856,-151.0,0.00035374,7]
[327651606,1716281450865,-151.76488,0.00035374,7]
[327651607,1716281450874,-151.0,0.00035374,7]
[327651608,1716281450883,-151.0,0.00035374,7]
[327651609,1716281450892,-500.0,0.00035374,6]
[327651610,1716281450902,-5800.0,0.00035375,2]
[327651611,1716281450911,-300.0,0.00035375,2]
[327651612,1716281450922,-150.0,0.00035377,2]
[327651613,1716281450932,-176.48403997,0.00035377,2]
[327651614,1716281450941,-151.65055707,0.00035378,2]
[327651615,1716281450951,-178.59455584,0.00035379,8]
[327651616,1716281450961,-1909.67674965,0.00035379,8]
[327651617,1716281450973,-2572.574511,0.00035379,2]
[327651618,1716281450982,-164.84816283,0.00035379,2]
[327651619,1716281450992,-618.837056,0.00035379,7]
[327651620,1716281451002,-151.0,0.00035379,7]
[327651621,1716281451012,-618.837056,0.00035379,7]
[327651622,1716281451022,-167.47819089,0.00035379,2]
[327651623,1716281451032,-151.0,0.00035379,7]
[327651624,1716281451041,-151.0,0.00035379,7]
[327651625,1716281451052,-800.0,0.00035381,2]
[327651626,1716281451062,-5800.0,0.00035383,2]
[327651627,1716281451073,-267.82545389,0.00035389,4]
[327651628,1716281451082,-5800.0,0.00035392,2]
[327651629,1716281451092,-500.0,0.00035392,6]
[327651630,1716281451102,-500.0,0.00035392,6]
[327651631,1716281451112,-500.0,0.00035392,6]
[327651632,1716281451124,-500.0,0.00035392,6]
[327651633,1716281451133,-500.0,0.00035392,6]
[327651634,1716281451143,-500.0,0.00035392,6]
[327651635,1716281451153,-545.62,0.00035392,6]
[327651636,1716281451163,-500.0,0.00035392,6]
[327651637,1716281451173,-500.0,0.00035392,6]
[327651638,1716281451183,-390.00972082,0.00035392,6]
[327651639,1716281451193,-500.0,0.00035392,6]
[327651640,1716281451204,-500.0,0.00035392,6]
[327651641,1716281451215,-500.0,0.00035392,6]
[327651642,1716281451224,-500.0,0.00035392,6]
[327651643,1716281451235,-500.0,0.00035392,6]
[327651644,1716281451245,-500.0,0.00035392,6]
[327651645,1716281451254,-500.0,0.00035392,6]
[327651646,1716281451263,-509.13952475,0.00035392,6]
[327651647,1716281451272,-500.0,0.00035392,6]
[327651648,1716281451282,-580.94,0.00035392,6]
[327651649,1716281451290,-500.0,0.00035392,6]
[327651650,1716281451300,-500.0,0.00035392,6]
[327651651,1716281451310,-500.0,0.00035392,6]
[327651652,1716281451320,-500.0,0.00035392,6]
[327651653,1716281451331,-500.0,0.00035392,6]
[327651654,1716281451340,-500.0,0.00035392,6]
[327651655,1716281451350,-500.0,0.00035392,6]
[327651656,1716281451361,-500.0,0.00035392,6]
[327651657,1716281451371,-211.03767881,0.00035392,6]
[327651658,1716281451382,-500.0,0.00035392,6]
[327651659,1716281451393,-500.0,0.00035392,6]
[327651660,1716281451402,-500.0,0.00035392,6]
[327651661,1716281451412,-500.0,0.00035392,6]
[327651662,1716281451423,-500.0,0.00035392,6]
[327651663,1716281451434,-500.0,0.00035392,6]
[327651664,1716281451443,-507.15905897,0.00035392,6]
[327651665,1716281451452,-500.0,0.00035392,6]
[327651666,1716281451462,-555.37588029,0.00035392,6]
[327651667,1716281451472,-500.0,0.00035392,6]
[327651668,1716281451483,-500.0,0.00035392,6]
[327651669,1716281451493,-500.0,0.00035392,6]
[327651670,1716281451502,-500.0,0.00035392,6]
[327651671,1716281451512,-500.0,0.00035392,6]
[327651672,1716281451521,-500.0,0.00035392,6]
[327651673,1716281451531,-500.0,0.00035392,6]
[327651674,1716281451540,-500.0,0.00035392,6]
[327651675,1716281451550,-500.0,0.00035392,6]
[327651676,1716281451560,-500.0,0.00035392,6]
[327651677,1716281451569,-500.0,0.00035392,6]
[327651678,1716281451579,-500.0,0.00035392,6]
[327651679,1716281451588,-500.0,0.00035392,6]
[327651680,1716281451597,-500.0,0.00035392,6]
[327651681,1716281451607,-500.0,0.00035392,6]
[327651682,1716281451622,-500.0,0.00035392,6]
[327651683,1716281451632,-500.0,0.00035392,6]
[327651684,1716281451641,-500.0,0.00035392,6]
[327651685,1716281451652,-500.0,0.00035392,6]
[327651686,1716281451661,-500.0,0.00035392,6]
[327651687,1716281451671,-236.36591141,0.00035392,6]
[327651688,1716281451680,-500.0,0.00035392,6]
[327651689,1716281451689,-500.0,0.00035392,6]
[327651690,1716281451701,-507.6155758,0.00035392,6]
[327651691,1716281451710,-521.65516072,0.00035392,6]
[327651692,1716281451720,-500.0,0.00035392,6]
[327651693,1716281451729,-500.0,0.00035392,6]
[327651694,1716281451738,-503.84065471,0.00035392,6]
[327651695,1716281451747,-317.14943534,0.00035392,6]
[327651696,1716281451756,-622.32176833,0.00035392,6]
[327651697,1716281451766,-500.0,0.00035392,6]
[327651698,1716281451776,-500.0,0.00035392,6]
[327651699,1716281451785,-500.0,0.00035392,6]
[327651700,1716281451795,-610.67,0.00035392,6]
[327651701,1716281451804,-500.0,0.00035392,6]
[327651702,1716281451813,-500.0,0.00035392,6]
[327651703,1716281451823,-277.58873044,0.00035392,6]
[327651704,1716281451833,-500.0,0.00035392,6]
[327651705,1716281451843,-570.94598972,0.00035392,6]
[327651706,1716281451853,-500.0,0.00035392,6]
[327651707,1716281451863,-500.0,0.00035392,6]
[327651708,1716281451875,-500.0,0.00035392,6]
[327651709,1716281451885,-500.0,0.00035392,6]
[327651710,1716281451894,-500.09138599,0.00035392,6]
[327651711,1716281451904,-500.0,0.00035392,6]
[327651712,1716281451914,-500.0,0.00035392,6]
[327651713,1716281451923,-541.76534964,0.00035392,6]
[327651714,1716281451934,-500.0,0.00035392,6]
[327651715,1716281451944,-500.0,0.00035392,6]
[327651716,1716281451953,-500.0,0.00035392,6]
[327651717,1716281451963,-500.0,0.00035392,6]
[327651718,1716281451972,-500.0,0.00035392,6]
[327651719,1716281451984,-354.84098269,0.00035392,6]
[327651720,1716281451993,-500.0,0.00035392,6]
[327651721,1716281452003,-500.0,0.00035392,6]
[327651722,1716281452012,-500.0,0.00035392,6]
[327651723,1716281452021,-518.1963195,0.00035392,6]
[327651724,1716281452032,-500.0,0.00035392,6]
[327651725,1716281452042,-500.0,0.00035392,6]
[327651726,1716281452052,-500.0,0.00035392,6]
[327651727,1716281452062,-500.0,0.00035392,6]
[327651728,1716281452073,-500.0,0.00035392,6]
[327651729,1716281452083,-151.0,0.00035392,7]
[327651730,1716281452092,-151.0,0.00035392,7]
[327651731,1716281452237,-151.0,0.00035392,7]
[327651732,1716281452255,-500.0,0.00035392,6]
[327651733,1716281452265,-81559.88221843,0.00035393,5]
[327651734,1716281452278,-151.0,0.00035393,7]
[327651735,1716281452289,-157.663853,0.00035393,7]
[327651736,1716281452299,-151.0,0.00035393,7]
[327651737,1716281452310,-151.0,0.00035393,7]
[327651738,1716281452320,-151.0,0.00035393,7]
[327651739,1716281452330,-151.0,0.00035393,7]
[327651740,1716281452340,-151.0,0.00035393,7]
[327651741,1716281452350,-151.0,0.00035393,7]
[327651742,1716281452360,-5871.71100266,0.00035397,2]
[327651743,1716281452370,-208.1190654,0.00035397,2]
[327651744,1716281452381,-161.73963544,0.00035398,4]
[327651745,1716281452391,-157.052117,0.00035398,36]
[327651746,1716281452401,-1000.0,0.00035398,2]
[327651747,1716281452411,-1000.0,0.00035398,2]
[327651748,1716281452421,-1000.0,0.00035398,2]
[327651749,1716281452431,-1000.0,0.00035398,2]
[327651750,1716281452441,-1000.0,0.00035398,2]
[327651751,1716281452451,-1000.0,0.00035398,2]
[327651752,1716281452461,-1000.0,0.00035398,2]
[327651753,1716281452471,-1021.62579578,0.00035398,2]
[327651754,1716281452480,-7270.14,0.00035399,5]
[327651755,1716281452495,-204.78051809,0.00035399,4]
[327651756,1716281452506,-151.0,0.00035399,7]
[327651757,1716281452516,-151.0,0.00035399,7]
[327651758,1716281452526,-280.216002,0.00035399,7]
[327651759,1716281452536,-151.0,0.00035399,7]
[327651760,1716281452546,-151.0,0.00035399,7]
[327651761,1716281452557,-151.0,0.00035399,7]
[327651762,1716281452568,-151.0,0.00035399,7]
[327651763,1716281452587,-151.0,0.00035399,7]
[327651764,1716281452596,-151.0,0.00035399,7]
[327651765,1716281452606,-151.0,0.00035399,7]
[327651766,1716281452620,-151.0,0.00035399,7]
[327651767,1716281452631,-151.125235,0.00035399,7]
[327651768,1716281452640,-500.0,0.00035399,6]
[327651769,1716281452651,-500.0,0.00035399,6]
[327651770,1716281452663,-500.0,0.00035399,6]
[327651771,1716281452673,-500.0,0.00035399,6]
[327651772,1716281452683,-500.0,0.00035399,6]
[327651773,1716281452693,-500.0,0.00035399,6]
[327651774,1716281452704,-320.55,0.000354,7]
[327651775,1716281452713,-320.55,0.000354,7]
[327651776,1716281452723,-5800.0,0.000354,2]
[327651777,1716281452733,-202449.46946644,0.000354,10]
[327651778,1716281453242,-519.476,0.000354,10]
[327651779,1716281453253,-20170.08614048,0.000354,10]
[327651780,1716281453274,-6893.55070494,0.000354,10]
[327651781,1716281453286,-7943.41997475,0.000354,10]
[327651782,1716281453367,-331.05794952,0.00034804,2]
[327651783,1716281453377,-23.56205048,0.000354,10]
[327651784,1716281453390,-34908.76982235,0.000354,10]
[327651785,1716281453411,-438.25906892,0.000354,10]
[327651786,1716281521810,155.0,0.00017259,10]